[Event "Titled Tuesday Blitz April 26 Early 2022"]
[White "Alekseenko, Kirill"]
[Black "Esipenko, Andrey"]
[WhiteFideId "4135539"]
[BlackFideId "24175439"]
[WhiteElo "2682"]
[BlackElo "2617"]
[Result "1-0"]
[Round "08"]
[TimeControl "180+1"]
[Date "2022.04.26"]
[WhiteClock "0:00:12"]
[BlackClock "0:00:01"]

1. e4 {[%clk 0:03:00]}  e5 {[%clk 0:02:59]} 2. Nf3 {[%clk 0:03:00]}  Nc6 {[%clk 0:03:00]} 3. Bb5 {[%clk 0:03:01]}  Nf6 {[%clk 0:02:58]} 4. d3 {[%clk 0:03:00]}  Bc5 {[%clk 0:02:58]} 5. Bxc6 {[%clk 0:03:00]}  dxc6 {[%clk 0:02:59]} 6. Qe2 {[%clk 0:02:59]}  Bd6 {[%clk 0:02:57]} 7. b3 {[%clk 0:02:58]}  Be6 {[%clk 0:02:56]} 8. Bb2 {[%clk 0:02:58]}  Nd7 {[%clk 0:02:57]} 9. Nbd2 {[%clk 0:02:58]}  Qe7 {[%clk 0:02:55]} 10. O-O {[%clk 0:02:38]}  O-O-O {[%clk 0:02:51]} 11. Nc4 {[%clk 0:02:39]}  Bxc4 {[%clk 0:02:39]} 12. bxc4 {[%clk 0:02:40]}  g5 {[%clk 0:02:36]} 13. Nd2 {[%clk 0:02:32]}  h5 {[%clk 0:02:34]} 14. Rfb1 {[%clk 0:02:15]}  g4 {[%clk 0:02:29]} 15. Nf1 {[%clk 0:02:15]}  Bc5 {[%clk 0:02:21]} 16. Ne3 {[%clk 0:02:15]}  Qe6 {[%clk 0:02:02]} 17. a4 {[%clk 0:01:56]}  a5 {[%clk 0:02:00]} 18. Nf5 {[%clk 0:01:44]}  Rdg8 {[%clk 0:01:58]} 19. Ba3 {[%clk 0:01:42]}  h4 {[%clk 0:01:54]} 20. Bxc5 {[%clk 0:01:16]}  Nxc5 {[%clk 0:01:55]} 21. Qe3 {[%clk 0:01:17]}  b6 {[%clk 0:01:55]} 22. Re1 {[%clk 0:01:13]}  Kb7 {[%clk 0:01:46]} 23. Reb1 {[%clk 0:01:11]}  Ka7 {[%clk 0:01:42]} 24. Rf1 {[%clk 0:01:11]}  Qd7 {[%clk 0:01:39]} 25. f4 {[%clk 0:01:01]}  gxf3 {[%clk 0:01:38]} 26. Rxf3 {[%clk 0:01:01]}  Ne6 {[%clk 0:01:38]} 27. Rf2 {[%clk 0:00:57]}  c5 {[%clk 0:01:36]} 28. Kh1 {[%clk 0:00:53]}  Nf4 {[%clk 0:01:32]} 29. Qf3 {[%clk 0:00:48]}  Rg5 {[%clk 0:01:15]} 30. Rd2 {[%clk 0:00:34]}  Qc6 {[%clk 0:00:54]} 31. Ne3 {[%clk 0:00:33]}  Qd7 {[%clk 0:00:25]} 32. Nd5 {[%clk 0:00:31]}  Ne6 {[%clk 0:00:26]} 33. Rf1 {[%clk 0:00:30]}  Rg7 {[%clk 0:00:24]} 34. Qf6 {[%clk 0:00:31]}  Rh5 {[%clk 0:00:24]} 35. Rdf2 {[%clk 0:00:28]}  Kb7 {[%clk 0:00:22]} 36. Rf5 {[%clk 0:00:28]}  Rh8 {[%clk 0:00:18]} 37. Qxe5 {[%clk 0:00:28]}  Qxa4 {[%clk 0:00:18]} 38. Rxf7 {[%clk 0:00:25]}  Rxf7 {[%clk 0:00:17]} 39. Rxf7 {[%clk 0:00:26]}  Qxc2 {[%clk 0:00:17]} 40. Ne3 {[%clk 0:00:20]}  Qxd3 {[%clk 0:00:14]} 41. Qxh8 {[%clk 0:00:15]}  Qxe3 {[%clk 0:00:12]} 42. Qa1 {[%clk 0:00:12]}  h3 {[%clk 0:00:12]} 43. Qf1 {[%clk 0:00:12]}  a4 {[%clk 0:00:08]} 44. Rf3 {[%clk 0:00:12]}  Qxe4 {[%clk 0:00:08]} 45. Rxh3 {[%clk 0:00:13]}  Nd4 {[%clk 0:00:06]} 46. Rg3 {[%clk 0:00:11]}  Ka7 {[%clk 0:00:04]} 47. h3 {[%clk 0:00:12]}  Ka6 {[%clk 0:00:01]} 48. Ra3 {[%clk 0:00:12]} 1-0


[Site "https://www.chess.com"]

[Event "Titled Tuesday Blitz April 26 Early 2022"]
[White "Atakhan, Abtin"]
[Black "Avazkhonov, Alikhon"]
[WhiteFideId "22502203"]
[BlackFideId "14208504"]
[WhiteElo "2094"]
[BlackElo "1739"]
[Result "0-1"]
[Round "08"]
[TimeControl "180+1"]
[Date "2022.04.26"]
[WhiteClock "0:00:02"]
[BlackClock "0:00:04"]

1. e4 {[%clk 0:03:00]}  c5 {[%clk 0:02:57]} 2. Nc3 {[%clk 0:02:57]}  d6 {[%clk 0:02:55]} 3. d4 {[%clk 0:02:53]}  cxd4 {[%clk 0:02:55]} 4. Qxd4 {[%clk 0:02:54]}  Nc6 {[%clk 0:02:55]} 5. Qd2 {[%clk 0:02:55]}  Nf6 {[%clk 0:02:54]} 6. b3 {[%clk 0:02:55]}  e6 {[%clk 0:02:49]} 7. Bb2 {[%clk 0:02:54]}  Be7 {[%clk 0:02:50]} 8. O-O-O {[%clk 0:02:40]}  O-O {[%clk 0:02:50]} 9. Kb1 {[%clk 0:02:39]}  a6 {[%clk 0:02:47]} 10. g3 {[%clk 0:02:37]}  b5 {[%clk 0:02:46]} 11. Bg2 {[%clk 0:02:34]}  Bb7 {[%clk 0:02:46]} 12. Nge2 {[%clk 0:02:28]}  Rc8 {[%clk 0:02:44]} 13. f4 {[%clk 0:02:18]}  Qb6 {[%clk 0:02:40]} 14. h3 {[%clk 0:02:09]}  Rfd8 {[%clk 0:02:40]} 15. g4 {[%clk 0:02:09]}  d5 {[%clk 0:01:32]} 16. exd5 {[%clk 0:02:09]}  Nb4 {[%clk 0:01:32]} 17. Nd4 {[%clk 0:01:12]}  Nfxd5 {[%clk 0:01:12]} 18. Ne4 {[%clk 0:01:10]}  Qc7 {[%clk 0:00:33]} 19. a3 {[%clk 0:00:57]}  Nc6 {[%clk 0:00:26]} 20. Rhf1 {[%clk 0:00:57]}  Nxd4 {[%clk 0:00:22]} 21. Qxd4 {[%clk 0:00:56]}  Qxc2+ {[%clk 0:00:20]} 22. Ka1 {[%clk 0:00:55]}  Nf6 {[%clk 0:00:18]} 23. Nxf6+ {[%clk 0:00:20]}  Bxf6 {[%clk 0:00:19]} 24. Qxd8+ {[%clk 0:00:19]}  Rxd8 {[%clk 0:00:19]} 25. Rxd8+ {[%clk 0:00:19]}  Bxd8 {[%clk 0:00:19]} 26. Bxb7 {[%clk 0:00:20]}  Bf6 {[%clk 0:00:16]} 27. Bxf6 {[%clk 0:00:16]}  gxf6 {[%clk 0:00:17]} 28. Rb1 {[%clk 0:00:14]}  Qc3+ {[%clk 0:00:17]} 29. Ka2 {[%clk 0:00:14]}  a5 {[%clk 0:00:17]} 30. a4 {[%clk 0:00:09]}  bxa4 {[%clk 0:00:14]} 31. bxa4 {[%clk 0:00:10]}  Qc4+ {[%clk 0:00:14]} 32. Ka3 {[%clk 0:00:11]}  Qxf4 {[%clk 0:00:07]} 33. Rb3 {[%clk 0:00:11]}  Qc1+ {[%clk 0:00:06]} 34. Ka2 {[%clk 0:00:11]}  Qc2+ {[%clk 0:00:06]} 35. Ka3 {[%clk 0:00:10]}  Qc5+ {[%clk 0:00:06]} 36. Ka2 {[%clk 0:00:11]}  Qf2+ {[%clk 0:00:06]} 37. Ka3 {[%clk 0:00:11]}  Qc5+ {[%clk 0:00:05]} 38. Ka2 {[%clk 0:00:11]}  Kg7 {[%clk 0:00:05]} 39. Ba6 {[%clk 0:00:10]}  Qc2+ {[%clk 0:00:04]} 40. Ka3 {[%clk 0:00:09]}  f5 {[%clk 0:00:05]} 41. gxf5 {[%clk 0:00:09]}  exf5 {[%clk 0:00:06]} 42. Bd3 {[%clk 0:00:09]}  Qc5+ {[%clk 0:00:05]} 43. Ka2 {[%clk 0:00:10]}  f4 {[%clk 0:00:06]} 44. Be4 {[%clk 0:00:08]}  Qf2+ {[%clk 0:00:05]} 45. Ka3 {[%clk 0:00:05]}  Qd4 {[%clk 0:00:04]} 46. Bf3 {[%clk 0:00:02]}  Qa1# {[%clk 0:00:04]} 0-1


[Site "https://www.chess.com"]

[Event "Titled Tuesday Blitz April 26 Early 2022"]
[White "Bacrot, Etienne"]
[Black "Samunenkov, Ihor"]
[WhiteFideId "605506"]
[BlackFideId "14187086"]
[WhiteElo "2673"]
[BlackElo "2409"]
[Result "0-1"]
[Round "08"]
[TimeControl "180+1"]
[Date "2022.04.26"]
[WhiteClock "0:01:16"]
[BlackClock "0:00:21"]

1. d4 {[%clk 0:03:00]}  d5 {[%clk 0:02:59]} 2. Nf3 {[%clk 0:03:00]}  Nf6 {[%clk 0:02:59]} 3. c4 {[%clk 0:03:00]}  e6 {[%clk 0:02:59]} 4. Nc3 {[%clk 0:03:00]}  a6 {[%clk 0:02:59]} 5. cxd5 {[%clk 0:02:59]}  exd5 {[%clk 0:03:00]} 6. Bf4 {[%clk 0:03:00]}  Bd6 {[%clk 0:02:58]} 7. e3 {[%clk 0:03:00]}  Bxf4 {[%clk 0:02:44]} 8. exf4 {[%clk 0:03:00]}  O-O {[%clk 0:02:45]} 9. Bd3 {[%clk 0:02:59]}  Re8+ {[%clk 0:02:42]} 10. Kf1 {[%clk 0:02:59]}  Bg4 {[%clk 0:02:40]} 11. h3 {[%clk 0:02:59]}  Bxf3 {[%clk 0:02:40]} 12. Qxf3 {[%clk 0:02:59]}  Nc6 {[%clk 0:02:38]} 13. Rd1 {[%clk 0:02:56]}  Nxd4 {[%clk 0:02:12]} 14. Bxh7+ {[%clk 0:02:56]}  Kxh7 {[%clk 0:02:13]} 15. Rxd4 {[%clk 0:02:56]}  c5 {[%clk 0:02:14]} 16. Rd1 {[%clk 0:02:52]}  d4 {[%clk 0:02:09]} 17. Ne2 {[%clk 0:02:52]}  Qd5 {[%clk 0:02:03]} 18. Qd3+ {[%clk 0:02:38]}  Qe4 {[%clk 0:01:56]} 19. h4 {[%clk 0:02:29]}  Qxd3 {[%clk 0:01:38]} 20. Rxd3 {[%clk 0:02:30]}  Rad8 {[%clk 0:01:38]} 21. h5 {[%clk 0:02:28]}  Nd5 {[%clk 0:01:24]} 22. Rd2 {[%clk 0:02:23]}  d3 {[%clk 0:01:11]} 23. Ng3 {[%clk 0:02:04]}  Nxf4 {[%clk 0:01:01]} 24. Rh4 {[%clk 0:02:04]}  Re1+ {[%clk 0:00:56]} 25. Kxe1 {[%clk 0:02:03]}  Nxg2+ {[%clk 0:00:57]} 26. Kf1 {[%clk 0:01:56]}  Nxh4 {[%clk 0:00:58]} 27. Ne4 {[%clk 0:01:55]}  Nf3 {[%clk 0:00:52]} 28. Rd1 {[%clk 0:01:55]}  c4 {[%clk 0:00:52]} 29. Kg2 {[%clk 0:01:53]}  Ne5 {[%clk 0:00:49]} 30. f4 {[%clk 0:01:50]}  Nc6 {[%clk 0:00:45]} 31. b3 {[%clk 0:01:49]}  b5 {[%clk 0:00:44]} 32. bxc4 {[%clk 0:01:45]}  bxc4 {[%clk 0:00:45]} 33. Rc1 {[%clk 0:01:44]}  d2 {[%clk 0:00:20]} 34. Rd1 {[%clk 0:01:42]}  f5 {[%clk 0:00:21]} 35. Ng5+ {[%clk 0:01:18]}  Kg8 {[%clk 0:00:21]} 36. Rxd2 {[%clk 0:01:16]}  Rxd2+ {[%clk 0:00:21]} 0-1


[Site "https://www.chess.com"]

[Event "Titled Tuesday Blitz April 26 Early 2022"]
[White "Belenkaya, Dina"]
[Black "Kim, Sergey"]
[WhiteFideId "24142654"]
[BlackFideId "13700570"]
[WhiteElo "2196"]
[BlackElo "2535"]
[Result "1-0"]
[Round "08"]
[TimeControl "180+1"]
[Date "2022.04.26"]
[WhiteClock "0:00:11"]
[BlackClock "0:00:04"]

1. e4 {[%clk 0:03:00]}  e5 {[%clk 0:02:59]} 2. Nf3 {[%clk 0:03:00]}  Nc6 {[%clk 0:02:59]} 3. Bb5 {[%clk 0:03:00]}  a6 {[%clk 0:03:00]} 4. Ba4 {[%clk 0:03:00]}  Nf6 {[%clk 0:03:00]} 5. d3 {[%clk 0:02:59]}  b5 {[%clk 0:03:00]} 6. Bb3 {[%clk 0:02:59]}  Bc5 {[%clk 0:03:01]} 7. O-O {[%clk 0:02:58]}  d6 {[%clk 0:03:01]} 8. c3 {[%clk 0:02:56]}  h6 {[%clk 0:03:00]} 9. Nbd2 {[%clk 0:02:50]}  O-O {[%clk 0:02:59]} 10. Re1 {[%clk 0:02:49]}  Bb6 {[%clk 0:02:51]} 11. Nf1 {[%clk 0:02:49]}  Be6 {[%clk 0:02:49]} 12. Bc2 {[%clk 0:02:45]}  Ne7 {[%clk 0:02:40]} 13. Ne3 {[%clk 0:02:45]}  Ng6 {[%clk 0:02:40]} 14. d4 {[%clk 0:02:42]}  Re8 {[%clk 0:02:37]} 15. b3 {[%clk 0:02:27]}  c5 {[%clk 0:02:36]} 16. Bb2 {[%clk 0:02:26]}  Rc8 {[%clk 0:02:31]} 17. Rc1 {[%clk 0:02:24]}  Qc7 {[%clk 0:02:27]} 18. Bb1 {[%clk 0:02:24]}  Nf4 {[%clk 0:02:25]} 19. Qd2 {[%clk 0:02:17]}  Ng6 {[%clk 0:01:59]} 20. Nf5 {[%clk 0:02:02]}  Rcd8 {[%clk 0:01:46]} 21. g3 {[%clk 0:01:30]}  Qa7 {[%clk 0:01:42]} 22. d5 {[%clk 0:01:24]}  Bc8 {[%clk 0:01:39]} 23. c4 {[%clk 0:01:24]}  Qc7 {[%clk 0:01:26]} 24. Qe2 {[%clk 0:01:18]}  Ne7 {[%clk 0:01:22]} 25. N3h4 {[%clk 0:01:17]}  Nxf5 {[%clk 0:01:21]} 26. exf5 {[%clk 0:01:16]}  b4 {[%clk 0:00:56]} 27. Kh1 {[%clk 0:01:13]}  a5 {[%clk 0:00:55]} 28. g4 {[%clk 0:01:12]}  Nh7 {[%clk 0:00:53]} 29. Nf3 {[%clk 0:01:05]}  a4 {[%clk 0:00:52]} 30. h4 {[%clk 0:01:03]}  Qe7 {[%clk 0:00:51]} 31. Be4 {[%clk 0:00:57]}  Nf6 {[%clk 0:00:47]} 32. Rg1 {[%clk 0:00:57]}  Nxe4 {[%clk 0:00:47]} 33. Qxe4 {[%clk 0:00:56]}  Qf6 {[%clk 0:00:47]} 34. Rg2 {[%clk 0:00:49]}  h5 {[%clk 0:00:45]} 35. Rcg1 {[%clk 0:00:47]}  hxg4 {[%clk 0:00:45]} 36. Qxg4 {[%clk 0:00:45]}  Bxf5 {[%clk 0:00:41]} 37. Qxg7+ {[%clk 0:00:40]}  Qxg7 {[%clk 0:00:41]} 38. Rxg7+ {[%clk 0:00:41]}  Kf8 {[%clk 0:00:42]} 39. Kh2 {[%clk 0:00:23]}  Be4 {[%clk 0:00:28]} 40. R7g3 {[%clk 0:00:16]}  Ke7 {[%clk 0:00:21]} 41. Bc1 {[%clk 0:00:16]}  Kd7 {[%clk 0:00:20]} 42. Bg5 {[%clk 0:00:16]}  Ra8 {[%clk 0:00:20]} 43. h5 {[%clk 0:00:15]}  Rh8 {[%clk 0:00:19]} 44. h6 {[%clk 0:00:15]}  axb3 {[%clk 0:00:17]} 45. axb3 {[%clk 0:00:15]}  Ra2 {[%clk 0:00:18]} 46. Be3 {[%clk 0:00:11]}  Bd8 {[%clk 0:00:15]} 47. Rg7 {[%clk 0:00:10]}  Ke8 {[%clk 0:00:10]} 48. R1g3 {[%clk 0:00:09]}  Bf6 {[%clk 0:00:08]} 49. Rg8+ {[%clk 0:00:10]}  Rxg8 {[%clk 0:00:08]} 50. Rxg8+ {[%clk 0:00:11]}  Ke7 {[%clk 0:00:08]} 51. Ng5 {[%clk 0:00:11]}  Bg6 {[%clk 0:00:04]} 52. h7 {[%clk 0:00:11]} 1-0


[Site "https://www.chess.com"]

[Event "Titled Tuesday Blitz April 26 Early 2022"]
[White "Bristy, Mukherjee"]
[Black "Omelja, Artem"]
[WhiteFideId "25077325"]
[BlackFideId "14119846"]
[WhiteElo "1661"]
[BlackElo "2382"]
[Result "0-1"]
[Round "08"]
[TimeControl "180+1"]
[Date "2022.04.26"]
[WhiteClock "0:00:09"]
[BlackClock "0:00:09"]

1. d4 {[%clk 0:03:00]}  d5 {[%clk 0:02:55]} 2. Bg5 {[%clk 0:03:00]}  g6 {[%clk 0:02:45]} 3. e3 {[%clk 0:02:59]}  Bg7 {[%clk 0:02:44]} 4. h4 {[%clk 0:02:58]}  h6 {[%clk 0:02:39]} 5. Bf4 {[%clk 0:02:57]}  Nf6 {[%clk 0:02:40]} 6. Nd2 {[%clk 0:02:55]}  c5 {[%clk 0:02:33]} 7. c3 {[%clk 0:02:49]}  Nc6 {[%clk 0:02:30]} 8. Ngf3 {[%clk 0:02:47]}  O-O {[%clk 0:02:29]} 9. Bd3 {[%clk 0:02:44]}  Bg4 {[%clk 0:02:15]} 10. Qb1 {[%clk 0:02:40]}  c4 {[%clk 0:02:06]} 11. Bc2 {[%clk 0:02:38]}  b5 {[%clk 0:02:06]} 12. Ne5 {[%clk 0:02:38]}  Nxe5 {[%clk 0:02:04]} 13. Bxe5 {[%clk 0:02:28]}  Nd7 {[%clk 0:01:58]} 14. Bxg7 {[%clk 0:02:12]}  Kxg7 {[%clk 0:01:59]} 15. f3 {[%clk 0:02:09]}  Be6 {[%clk 0:01:52]} 16. O-O {[%clk 0:02:08]}  a5 {[%clk 0:01:42]} 17. e4 {[%clk 0:02:07]}  b4 {[%clk 0:01:40]} 18. f4 {[%clk 0:02:07]}  Bg4 {[%clk 0:01:16]} 19. Qe1 {[%clk 0:01:56]}  bxc3 {[%clk 0:01:12]} 20. bxc3 {[%clk 0:01:55]}  e6 {[%clk 0:01:03]} 21. Qg3 {[%clk 0:01:48]}  h5 {[%clk 0:01:00]} 22. f5 {[%clk 0:01:46]}  Qb8 {[%clk 0:00:57]} 23. e5 {[%clk 0:01:12]}  exf5 {[%clk 0:00:38]} 24. Rfb1 {[%clk 0:01:02]}  Qc7 {[%clk 0:00:33]} 25. Nf1 {[%clk 0:00:50]}  Rfb8 {[%clk 0:00:25]} 26. Ne3 {[%clk 0:00:50]}  Qc6 {[%clk 0:00:22]} 27. Qf4 {[%clk 0:00:42]}  Nf8 {[%clk 0:00:20]} 28. Rxb8 {[%clk 0:00:31]}  Rxb8 {[%clk 0:00:18]} 29. e6 {[%clk 0:00:32]}  Rb2 {[%clk 0:00:17]} 30. e7 {[%clk 0:00:25]}  Ne6 {[%clk 0:00:15]} 31. Qe5+ {[%clk 0:00:21]}  f6 {[%clk 0:00:15]} 32. Qxd5 {[%clk 0:00:20]}  Qxd5 {[%clk 0:00:15]} 33. Nxd5 {[%clk 0:00:19]}  Kf7 {[%clk 0:00:15]} 34. Ba4 {[%clk 0:00:17]}  Ng7 {[%clk 0:00:15]} 35. Re1 {[%clk 0:00:15]}  Re2 {[%clk 0:00:11]} 36. Rxe2 {[%clk 0:00:14]}  Bxe2 {[%clk 0:00:11]} 37. Kf2 {[%clk 0:00:13]}  Bd3 {[%clk 0:00:12]} 38. Ke3 {[%clk 0:00:12]}  Be4 {[%clk 0:00:11]} 39. Nxf6 {[%clk 0:00:10]}  Kxf6 {[%clk 0:00:09]} 40. e8=Q {[%clk 0:00:10]}  Nxe8 {[%clk 0:00:09]} 41. Bxe8 {[%clk 0:00:10]}  Bxg2 {[%clk 0:00:09]} 42. Kf4 {[%clk 0:00:10]}  Be4 {[%clk 0:00:07]} 43. a3 {[%clk 0:00:10]}  Bd3 {[%clk 0:00:07]} 44. Bb5 {[%clk 0:00:11]}  Bf1 {[%clk 0:00:06]} 45. Ba6 {[%clk 0:00:11]}  Be2 {[%clk 0:00:04]} 46. Bb7 {[%clk 0:00:11]}  Bd3 {[%clk 0:00:05]} 47. Bd5 {[%clk 0:00:11]}  Ke7 {[%clk 0:00:05]} 48. Bf3 {[%clk 0:00:12]}  Kf6 {[%clk 0:00:04]} 49. Bg2 {[%clk 0:00:12]}  Kg7 {[%clk 0:00:04]} 50. Bf3 {[%clk 0:00:13]}  Kh6 {[%clk 0:00:04]} 51. Bg2 {[%clk 0:00:12]}  g5+ {[%clk 0:00:04]} 52. hxg5+ {[%clk 0:00:11]}  Kg6 {[%clk 0:00:05]} 53. Bh3 {[%clk 0:00:11]}  h4 {[%clk 0:00:05]} 54. Bg2 {[%clk 0:00:11]}  Kh5 {[%clk 0:00:03]} 55. Bh3 {[%clk 0:00:12]}  Be4 {[%clk 0:00:03]} 56. Bxf5 {[%clk 0:00:10]}  Bxf5 {[%clk 0:00:03]} 57. Kxf5 {[%clk 0:00:11]}  h3 {[%clk 0:00:04]} 58. g6 {[%clk 0:00:12]}  h2 {[%clk 0:00:04]} 59. g7 {[%clk 0:00:13]}  h1=Q {[%clk 0:00:04]} 60. g8=Q {[%clk 0:00:12]}  Qf3+ {[%clk 0:00:05]} 61. Ke5 {[%clk 0:00:12]}  Qxc3 {[%clk 0:00:05]} 62. Qh7+ {[%clk 0:00:11]}  Kg4 {[%clk 0:00:05]} 63. Qf5+ {[%clk 0:00:11]}  Kg3 {[%clk 0:00:05]} 64. Qg5+ {[%clk 0:00:12]}  Kf2 {[%clk 0:00:05]} 65. Qh4+ {[%clk 0:00:12]}  Ke2 {[%clk 0:00:05]} 66. Qh2+ {[%clk 0:00:12]}  Kd3 {[%clk 0:00:05]} 67. Qg3+ {[%clk 0:00:12]}  Kc2 {[%clk 0:00:04]} 68. Qxc3+ {[%clk 0:00:13]}  Kxc3 {[%clk 0:00:05]} 69. d5 {[%clk 0:00:14]}  Kb3 {[%clk 0:00:06]} 70. d6 {[%clk 0:00:14]}  c3 {[%clk 0:00:06]} 71. d7 {[%clk 0:00:15]}  c2 {[%clk 0:00:07]} 72. d8=Q {[%clk 0:00:13]}  c1=Q {[%clk 0:00:08]} 73. Qxa5 {[%clk 0:00:14]}  Qg5+ {[%clk 0:00:07]} 74. Kd6 {[%clk 0:00:10]}  Qxa5 {[%clk 0:00:08]} 75. Kc6 {[%clk 0:00:11]}  Qxa3 {[%clk 0:00:08]} 76. Kb5 {[%clk 0:00:09]}  Qb4+ {[%clk 0:00:09]} 0-1


[Site "https://www.chess.com"]

[Event "Titled Tuesday Blitz April 26 Early 2022"]
[White "Buchenau, Frank"]
[Black "Hnydiuk, Aleksander"]
[WhiteFideId "4604350"]
[BlackFideId "1109057"]
[WhiteElo "2193"]
[BlackElo "2374"]
[Result "0-1"]
[Round "08"]
[TimeControl "180+1"]
[Date "2022.04.26"]
[WhiteClock "0:00:16"]
[BlackClock "0:01:24"]

1. e4 {[%clk 0:03:00]}  c5 {[%clk 0:02:59]} 2. Nf3 {[%clk 0:03:00]}  e6 {[%clk 0:02:58]} 3. d4 {[%clk 0:03:00]}  cxd4 {[%clk 0:02:59]} 4. Nxd4 {[%clk 0:03:00]}  Nc6 {[%clk 0:02:59]} 5. Nc3 {[%clk 0:03:00]}  a6 {[%clk 0:02:58]} 6. Be3 {[%clk 0:02:58]}  Nf6 {[%clk 0:02:57]} 7. Bd3 {[%clk 0:02:51]}  Qc7 {[%clk 0:02:55]} 8. O-O {[%clk 0:02:49]}  b5 {[%clk 0:02:55]} 9. Nxc6 {[%clk 0:02:48]}  Qxc6 {[%clk 0:02:56]} 10. a3 {[%clk 0:02:45]}  Bb7 {[%clk 0:02:56]} 11. Qe2 {[%clk 0:02:41]}  Rc8 {[%clk 0:02:51]} 12. Kh1 {[%clk 0:02:22]}  Be7 {[%clk 0:02:40]} 13. f4 {[%clk 0:02:17]}  O-O {[%clk 0:02:40]} 14. Rad1 {[%clk 0:02:05]}  Bxa3 {[%clk 0:02:33]} 15. e5 {[%clk 0:01:54]}  Bxb2 {[%clk 0:02:30]} 16. exf6 {[%clk 0:01:52]}  Bxc3 {[%clk 0:02:30]} 17. fxg7 {[%clk 0:01:35]}  Bxg7 {[%clk 0:02:31]} 18. Rf3 {[%clk 0:01:33]}  f5 {[%clk 0:02:28]} 19. Rg3 {[%clk 0:01:31]}  Rf6 {[%clk 0:02:23]} 20. Rxg7+ {[%clk 0:01:13]}  Kxg7 {[%clk 0:02:23]} 21. Bd4 {[%clk 0:01:13]}  Rg8 {[%clk 0:02:11]} 22. Rf1 {[%clk 0:01:02]}  Kf8 {[%clk 0:02:04]} 23. Rf3 {[%clk 0:00:46]}  Rfg6 {[%clk 0:01:58]} 24. Qe5 {[%clk 0:00:39]}  Rxg2 {[%clk 0:01:33]} 25. Bc5+ {[%clk 0:00:23]}  Ke8 {[%clk 0:01:27]} 26. Bxf5 {[%clk 0:00:17]}  Rg1+ {[%clk 0:01:24]} 27. Bxg1 {[%clk 0:00:16]}  Qxf3# {[%clk 0:01:24]} 0-1


[Site "https://www.chess.com"]

[Event "Titled Tuesday Blitz April 26 Early 2022"]
[White "Buscar, Michael"]
[Black "Cunha, Lucas Aguiar"]
[WhiteFideId "2603616"]
[BlackFideId "2125404"]
[WhiteElo "2010"]
[BlackElo "2361"]
[Result "0-1"]
[Round "08"]
[TimeControl "180+1"]
[Date "2022.04.26"]
[WhiteClock "0:00:11"]
[BlackClock "0:01:07"]

1. Nf3 {[%clk 0:03:00]}  d5 {[%clk 0:03:00]} 2. g3 {[%clk 0:03:00]}  Nf6 {[%clk 0:03:00]} 3. Bg2 {[%clk 0:03:01]}  c5 {[%clk 0:03:01]} 4. O-O {[%clk 0:02:58]}  Nc6 {[%clk 0:03:01]} 5. d4 {[%clk 0:02:56]}  e6 {[%clk 0:03:01]} 6. a3 {[%clk 0:02:34]}  Qb6 {[%clk 0:02:55]} 7. c3 {[%clk 0:02:30]}  Be7 {[%clk 0:02:49]} 8. Nbd2 {[%clk 0:02:12]}  a5 {[%clk 0:02:46]} 9. dxc5 {[%clk 0:02:11]}  Bxc5 {[%clk 0:02:47]} 10. Nb3 {[%clk 0:02:10]}  Be7 {[%clk 0:02:43]} 11. Nbd4 {[%clk 0:02:10]}  O-O {[%clk 0:02:40]} 12. Nxc6 {[%clk 0:02:04]}  bxc6 {[%clk 0:02:41]} 13. Qc2 {[%clk 0:02:02]}  a4 {[%clk 0:02:38]} 14. Be3 {[%clk 0:01:57]}  c5 {[%clk 0:02:38]} 15. c4 {[%clk 0:01:51]}  d4 {[%clk 0:02:19]} 16. Bg5 {[%clk 0:01:50]}  Bb7 {[%clk 0:02:18]} 17. e3 {[%clk 0:01:39]}  Be4 {[%clk 0:02:14]} 18. Qd2 {[%clk 0:01:34]}  Qb7 {[%clk 0:02:12]} 19. Nh4 {[%clk 0:01:31]}  Rfd8 {[%clk 0:02:05]} 20. exd4 {[%clk 0:01:28]}  Rxd4 {[%clk 0:02:06]} 21. Qc3 {[%clk 0:01:28]}  h6 {[%clk 0:01:57]} 22. Be3 {[%clk 0:01:19]}  Bxg2 {[%clk 0:01:55]} 23. Nxg2 {[%clk 0:01:16]}  Rdd8 {[%clk 0:01:52]} 24. Rfd1 {[%clk 0:01:13]}  Rdb8 {[%clk 0:01:52]} 25. Rab1 {[%clk 0:01:10]}  Qe4 {[%clk 0:01:50]} 26. Qd3 {[%clk 0:00:59]}  Rb3 {[%clk 0:01:45]} 27. Qxe4 {[%clk 0:00:46]}  Nxe4 {[%clk 0:01:46]} 28. Rd7 {[%clk 0:00:46]}  Bf6 {[%clk 0:01:45]} 29. Rc7 {[%clk 0:00:39]}  Bxb2 {[%clk 0:01:32]} 30. Bxc5 {[%clk 0:00:30]}  Nxc5 {[%clk 0:01:25]} 31. Rxc5 {[%clk 0:00:29]}  Bxa3 {[%clk 0:01:26]} 32. Rb5 {[%clk 0:00:28]}  Rxb1+ {[%clk 0:01:22]} 33. Rxb1 {[%clk 0:00:28]}  Bc5 {[%clk 0:01:22]} 34. Ne1 {[%clk 0:00:21]}  a3 {[%clk 0:01:22]} 35. Nc2 {[%clk 0:00:20]}  a2 {[%clk 0:01:21]} 36. Rd1 {[%clk 0:00:20]}  Ra4 {[%clk 0:01:18]} 37. Ra1 {[%clk 0:00:19]}  Be7 {[%clk 0:01:11]} 38. c5 {[%clk 0:00:11]}  Bf6 {[%clk 0:01:07]} 0-1


[Site "https://www.chess.com"]

[Event "Titled Tuesday Blitz April 26 Early 2022"]
[White "Chigaev, Maksim"]
[Black "Aradhya, Garg"]
[WhiteFideId "4108116"]
[BlackFideId "25006746"]
[WhiteElo "2478"]
[BlackElo "2169"]
[Result "1-0"]
[Round "08"]
[TimeControl "180+1"]
[Date "2022.04.26"]
[WhiteClock "0:00:12"]
[BlackClock "0:00:07"]

1. d4 {[%clk 0:03:00]}  d5 {[%clk 0:02:59]} 2. Nf3 {[%clk 0:03:00]}  Nf6 {[%clk 0:02:59]} 3. c4 {[%clk 0:03:00]}  c6 {[%clk 0:02:59]} 4. g3 {[%clk 0:03:00]}  g6 {[%clk 0:02:56]} 5. Bg2 {[%clk 0:02:58]}  Bg7 {[%clk 0:02:55]} 6. O-O {[%clk 0:02:59]}  O-O {[%clk 0:02:55]} 7. Nc3 {[%clk 0:02:59]}  dxc4 {[%clk 0:02:55]} 8. e4 {[%clk 0:02:59]}  b5 {[%clk 0:02:54]} 9. Qe2 {[%clk 0:02:59]}  b4 {[%clk 0:02:50]} 10. Na4 {[%clk 0:02:59]}  Ba6 {[%clk 0:02:48]} 11. Rd1 {[%clk 0:02:51]}  Bb5 {[%clk 0:02:43]} 12. Nc5 {[%clk 0:02:47]}  Nfd7 {[%clk 0:02:42]} 13. e5 {[%clk 0:02:37]}  c3 {[%clk 0:02:32]} 14. Qc2 {[%clk 0:02:36]}  Nxc5 {[%clk 0:02:30]} 15. dxc5 {[%clk 0:02:36]}  Qa5 {[%clk 0:02:30]} 16. a4 {[%clk 0:02:17]}  cxb2 {[%clk 0:01:18]} 17. Bxb2 {[%clk 0:02:13]}  b3 {[%clk 0:01:18]} 18. Qxb3 {[%clk 0:01:36]}  Be2 {[%clk 0:01:16]} 19. e6 {[%clk 0:01:25]}  f6 {[%clk 0:00:39]} 20. Re1 {[%clk 0:01:14]}  Bxf3 {[%clk 0:00:38]} 21. Bxf3 {[%clk 0:01:15]}  Na6 {[%clk 0:00:38]} 22. Ba3 {[%clk 0:00:58]}  Rab8 {[%clk 0:00:21]} 23. Qc4 {[%clk 0:00:58]}  f5 {[%clk 0:00:20]} 24. Rab1 {[%clk 0:00:48]}  Qc3 {[%clk 0:00:15]} 25. Qxc3 {[%clk 0:00:30]}  Bxc3 {[%clk 0:00:14]} 26. Red1 {[%clk 0:00:31]}  Bb4 {[%clk 0:00:12]} 27. Bxb4 {[%clk 0:00:27]}  Rxb4 {[%clk 0:00:12]} 28. Rxb4 {[%clk 0:00:24]}  Nxb4 {[%clk 0:00:11]} 29. Rd7 {[%clk 0:00:24]}  a5 {[%clk 0:00:10]} 30. Rxe7 {[%clk 0:00:18]}  Rf6 {[%clk 0:00:09]} 31. Re8+ {[%clk 0:00:15]}  Kg7 {[%clk 0:00:08]} 32. Be2 {[%clk 0:00:14]}  Nd5 {[%clk 0:00:06]} 33. Bc4 {[%clk 0:00:13]}  f4 {[%clk 0:00:06]} 34. Bxd5 {[%clk 0:00:12]}  cxd5 {[%clk 0:00:07]} 35. c6 {[%clk 0:00:13]}  d4 {[%clk 0:00:07]} 36. c7 {[%clk 0:00:12]} 1-0


[Site "https://www.chess.com"]